[Event "GER-ch Blitz Women 2020"]
[Site "Magdeburg"]
[Date "2020.08.15"]
[Round "14.5"]
[White "Mader, Lena"]
[Black "Kosovska, Olena"]
[Result "0-1"]
[ECO "A10"]
[WhiteElo "1839"]
[BlackElo "1881"]
[Annotator "NA RC"]
[PlyCount "98"]
[EventDate "2020.07.28"]
[EventType "tourn"]
[EventCountry "GER"]
[SourceTitle "playchess.com"]
[Source "ChessBase"]
[SourceQuality "1"]
[TimeControl "180+2"]

1. c4 {[%emt 0:00:00]} g6 {[%emt 0:00:00]} 2. Nc3 {[%emt 0:00:00]} Bg7 {[%emt 0:00:00]} 3. g3 {[%emt 0:00:01]} d6 {[%emt 0:00:01]} 4. Bg2 {[%emt 0:00:02]} Nf6 {[%emt 0:00:01]} 5. Nf3 {[%emt 0:00:03]} O-O {[%emt 0:00:01]} 6. O-O {[%emt 0:00:01]} e5 {[%emt 0:00:02]} 7. d3 {[%emt 0:00:01]} Be6 {[%emt 0:00:03]} 8. Rb1 {[%emt 0:00:04]} Qd7 {[%emt 0:00:01]} 9. Re1 {[%emt 0:00:06]} Bh3 {[%emt 0:00:07]} 10. Bh1 {[%emt 0:00:02]} Nc6 {[%emt 0:00:05]} 11. b4 {[%emt 0:00:04]} Nh5 {[%emt 0:00:18]} 12. Ng5 {[%emt 0:00:29]} Bg4 {[%emt 0:00:13]} 13. f3 {[%emt 0:00:18]} Be6 {[%emt 0:00:04]} 14. b5 {[%emt 0:00:11]} Ne7 {[%emt 0:00:29]} 15. e4 {[%emt 0:00:26]} f5 {[%emt 0:00:25]} 16. Nxe6 {[%emt 0:00:14]} Qxe6 {[%emt 0:00:01]} 17. Nd5 {[%emt 0:00:20]} Nxd5 {[%emt 0:00:10]} 18. cxd5 {[%emt 0:00:03]} Qd7 {[%emt 0:00:10]} 19. a4 {[%emt 0:00:16]} f4 {[%emt 0:00:02]} 20. g4 {[%emt 0:00:05]} Nf6 {[%emt 0:00:01]} 21. Re2 {[%emt 0:00:17]} a6 {[%emt 0:00:10]} 22. b6 {[%emt 0:00:08]} Rfc8 {[%emt 0:00:30]} 23. Rc2 {[%emt 0:00:09]} Qxa4 {[%emt 0:00:18]} 24. bxc7 {[%emt 0:00:16]} Rxc7 {[%emt 0:00:06]} 25. Rd2 {[%emt 0:00:05]} Qd4+ {[%emt 0:00:04]} 26. Kg2 {[%emt 0:00:02]} Rac8 {[%emt 0:00:05]} 27. Bb2 {[%emt 0:00:02]} Qe3 {[%emt 0:00:08]} 28. Qe2 {[%emt 0:00:02]} Qxe2+ 29. Rxe2 Nd7 {[%emt 0:00:02]} 30. Kf2 {[%emt 0:00:04]} Nc5 {[%emt 0:00:02]} 31. Rd1 {[%emt 0:00:02]} b5 {[%emt 0:00:02]} 32. h4 {[%emt 0:00:01]} a5 {[%emt 0:00:01]} 33. Ba3 {[%emt 0:00:02]} b4 {[%emt 0:00:01]} 34. Bb2 {[%emt 0:00:01]} a4 {[%emt 0:00:00]} 35. h5 {[%emt 0:00:01]} a3 {[%emt 0:00:02]} 36. Ba1 {[%emt 0:00:01]} b3 {[%emt 0:00:01]} 37. hxg6 {[%emt 0:00:02]} hxg6 {[%emt 0:00:01]} 38. g5 {[%emt 0:00:03]} b2 {[%emt 0:00:01]} 39. Bxb2 {[%emt 0:00:01]} axb2 {[%emt 0:00:01]} 40. Rxb2 {[%emt 0:00:01]} Na4 {[%emt 0:00:02]} 41. Rb4 {[%emt 0:00:02]} Rc2+ {[%emt 0:00:03]} 42. Kf1 {[%emt 0:00:02]} Nc5 {[%emt 0:00:02]} 43. Rb6 {[%emt 0:00:03]} Bf8 {[%emt 0:00:06]} 44. Bg2 {[%emt 0:00:01]} Rc3 {[%emt 0:00:02]} 45. Bh3 {[%emt 0:00:02]} Ra8 {[%emt 0:00:05]} 46. Be6+ {[%emt 0:00:02]} Kg7 {[%emt 0:00:03]} 47. Rc6 {[%emt 0:00:04]} Ra7 {[%emt 0:00:03]} 48. Rxc5 {[%emt 0:00:02]} Rxd3 {[%emt 0:00:03]} 49. Rxd3 {[%emt 0:00:01]} Re7 {[%emt 0:00:04]} 0-1

[Event "GER-ch Blitz Women 2020"]
[Site "Magdeburg"]
[Date "2020.08.15"]
[Round "15.5"]
[White "Kosovska, Olena"]
[Black "Voicu-Jagodzinsky, Carmen"]
[Result "0-1"]
[ECO "B23"]
[WhiteElo "1881"]
[BlackElo "2244"]
[Annotator "RC"]
[PlyCount "65"]
[EventDate "2020.07.28"]
[EventType "tourn"]
[EventCountry "GER"]
[SourceTitle "playchess.com"]
[Source "ChessBase"]
[SourceQuality "1"]
[TimeControl "180+2"]

1. e4 {[%emt 0:00:00]} c5 {[%emt 0:00:00]} 2. Nc3 {[%emt 0:00:00]} Nc6 {[%emt 0:00:00]} 3. f4 {[%emt 0:00:01]} a6 {[%emt 0:00:00]} 4. Nf3 {[%emt 0:00:02]} b5 {[%emt 0:00:01]} 5. g3 {[%emt 0:00:02]} Bb7 {[%emt 0:00:01]} 6. Bg2 {[%emt 0:00:02]} b4 {[%emt 0:00:03]} 7. Ne2 {[%emt 0:00:11]} e6 {[%emt 0:00:07]} 8. O-O {[%emt 0:00:02]} Nf6 {[%emt 0:00:08]} 9. e5 {[%emt 0:00:16]} Nd5 {[%emt 0:00:00]} 10. c4 {[%emt 0:00:45]} bxc3 {[%emt 0:00:03]} 11. bxc3 {[%emt 0:00:01]} Be7 {[%emt 0:00:09]} 12. Rb1 {[%emt 0:00:08]} Rb8 {[%emt 0:00:03]} 13. c4 {[%emt 0:00:16]} Ndb4 {[%emt 0:00:27]} 14. Qb3 {[%emt 0:00:10]} Na5 {[%emt 0:00:14]} 15. Qa4 {[%emt 0:00:37]} Be4 {[%emt 0:00:04]} 16. Rb3 {[%emt 0:00:09]} Bc6 {[%emt 0:00:15]} 17. Rxb4 {[%emt 0:00:15]} Bxa4 {[%emt 0:00:06]} 18. Rxa4 {[%emt 0:00:01]} O-O {[%emt 0:00:04]} 19. Ba3 {[%emt 0:00:06]} d6 {[%emt 0:00:04]} 20. d4 {[%emt 0:00:08]} Qb6 {[%emt 0:00:25]} 21. exd6 {[%emt 0:00:04]} Bxd6 {[%emt 0:00:02]} 22. d5 {[%emt 0:00:15]} exd5 {[%emt 0:00:09]} 23. Ne5 {[%emt 0:00:04]} Bxe5 {[%emt 0:00:06]} 24. fxe5 {[%emt 0:00:01]} Nxc4 25. Bxd5 {[%emt 0:00:03]} Ne3 {[%emt 0:00:17]} 26. Bxf7+ {[%emt 0:00:05]} Rxf7 {[%emt 0:00:03]} 27. Rxf7 {[%emt 0:00:02]} Kxf7 {[%emt 0:00:01]} 28. Rf4+ {[%emt 0:00:02]} Kg8 {[%emt 0:00:02]} 29. Rf3 {[%emt 0:00:05]} Qb1+ {[%emt 0:00:09]} 30. Kf2 {[%emt 0:00:03]} Ng4+ {[%emt 0:00:02]} 31. Kg2 {[%emt 0:00:01]} Nxe5 {[%emt 0:00:03]} 32. Rf5 {[%emt 0:00:04]} Qxf5 {[%emt 0:00:02]} 33. Bc1 0-1

[Event "GER-ch Blitz Women 2020"]
[Site "Magdeburg"]
[Date "2020.08.15"]
[Round "15.8"]
[White "Skibbe, Diana"]
[Black "Osmanodja, Filiz"]
[Result "0-1"]
[ECO "B62"]
[WhiteElo "1991"]
[BlackElo "2293"]
[Annotator "RC"]
[PlyCount "34"]
[EventDate "2020.07.28"]
[EventType "tourn"]
[EventCountry "GER"]
[SourceTitle "playchess.com"]
[Source "ChessBase"]
[SourceQuality "1"]
[TimeControl "180+2"]

1. e4 {[%emt 0:00:00]} c5 {[%emt 0:00:00]} 2. Nf3 {[%emt 0:00:01]} d6 {[%emt 0:00:00]} 3. d4 {[%emt 0:00:01]} cxd4 {[%emt 0:00:00]} 4. Nxd4 {[%emt 0:00:01]} Nf6 {[%emt 0:00:01]} 5. Nc3 {[%emt 0:00:01]} Nc6 {[%emt 0:00:01]} 6. Bg5 {[%emt 0:00:03]} e6 {[%emt 0:00:01]} 7. f4 {[%emt 0:00:07]} Qb6 {[%emt 0:00:17]} 8. Nb3 {[%emt 0:00:13]} Be7 {[%emt 0:00:14]} 9. Bd3 {[%emt 0:00:09]} h6 {[%emt 0:00:23]} 10. Bxf6 {[%emt 0:00:06]} Bxf6 {[%emt 0:00:04]} 11. Qe2 {[%emt 0:00:10]} Nd4 {[%emt 0:00:12]} 12. Nxd4 {[%emt 0:00:12]} Bxd4 {[%emt 0:00:11]} 13. O-O-O {[%emt 0:00:04]} Bxc3 {[%emt 0:00:14]} 14. bxc3 {[%emt 0:00:02]} O-O {[%emt 0:00:02]} 15. Kd2 {[%emt 0:00:01]} e5 {[%emt 0:00:11]} 16. g4 {[%emt 0:00:19]} exf4 {[%emt 0:00:06]} 17. h4 {[%emt 0:00:22]} Bxg4 {[%emt 0:00:11]} 0-1

[Event "GER-ch Blitz Women 2020"]
[Site "Magdeburg"]
[Date "2020.08.15"]
[Round "16.1"]
[White "Paehtz, Elisabeth"]
[Black "Michna, Marta"]
[Result "0-1"]
[ECO "A46"]
[WhiteElo "2473"]
[BlackElo "2350"]
[Annotator "ChessBase"]
[PlyCount "140"]
[EventDate "2020.07.28"]
[EventType "tourn"]
[EventCountry "GER"]
[SourceTitle "playchess.com"]
[Source "ChessBase"]
[SourceQuality "1"]
[TimeControl "180+2"]

1. d4 {[%emt 0:00:00]} Nf6 {[%emt 0:00:00]} 2. Nf3 {[%emt 0:00:01]} d6 {[%emt 0:00:01]} 3. c3 {[%emt 0:00:02]} g6 {[%emt 0:00:10]} 4. Bg5 {[%emt 0:00:01]} Bg7 {[%emt 0:00:11]} 5. Nbd2 {[%emt 0:00:01]} Nbd7 {[%emt 0:00:12]} 6. e4 {[%emt 0:00:03]} O-O {[%emt 0:00:04]} 7. Bd3 {[%emt 0:00:05]} c5 {[%emt 0:00:09]} 8. d5 {[%emt 0:00:16]} h6 {[%emt 0:00:17]} 9. Bh4 {[%emt 0:00:01]} Nh5 {[%emt 0:00:05]} 10. O-O {[%emt 0:00:10]} Nf4 {[%emt 0:00:38]} 11. Bc2 {[%emt 0:00:01]} Nf6 {[%emt 0:00:05]} 12. a4 {[%emt 0:00:09]} N6h5 {[%emt 0:00:34]} 13. Nc4 {[%emt 0:00:06]} Rb8 {[%emt 0:00:23]} 14. Qd2 {[%emt 0:00:06]} b6 {[%emt 0:00:03]} 15. Rfe1 {[%emt 0:00:12]} Bg4 {[%emt 0:00:10]} 16. Bd1 {[%emt 0:00:08]} Qd7 {[%emt 0:00:05]} 17. Bg3 {[%emt 0:00:08]} g5 {[%emt 0:00:03]} 18. e5 {[%emt 0:00:15]} Rbd8 {[%emt 0:00:14]} 19. e6 {[%emt 0:00:35]} fxe6 {[%emt 0:00:01]} 20. Nxg5 e5 21. Ne4 {[%emt 0:00:10]} Bxd1 {[%emt 0:00:07]} 22. Rexd1 {[%emt 0:00:05]} Qf5 {[%emt 0:00:01]} 23. Re1 {[%emt 0:00:02]} Qf7 {[%emt 0:00:04]} 24. Qe3 {[%emt 0:00:10]} Qxd5 {[%emt 0:00:03]} 25. Na3 {[%emt 0:00:06]} Qd3 {[%emt 0:00:04]} 26. Nb5 {[%emt 0:00:03]} Qxe3 {[%emt 0:00:02]} 27. fxe3 {[%emt 0:00:01]} Nd3 {[%emt 0:00:03]} 28. Re2 d5 29. Nf2 {[%emt 0:00:13]} Nxg3 {[%emt 0:00:02]} 30. hxg3 {[%emt 0:00:02]} Nxf2 {[%emt 0:00:01]} 31. Rxf2 {[%emt 0:00:01]} Rxf2 {[%emt 0:00:01]} 32. Kxf2 {[%emt 0:00:02]} Rd7 {[%emt 0:00:07]} 33. Rd1 {[%emt 0:00:04]} a6 {[%emt 0:00:01]} 34. Na3 {[%emt 0:00:01]} Rd6 {[%emt 0:00:03]} 35. Rh1 {[%emt 0:00:10]} e4 {[%emt 0:00:01]} 36. Rh5 e6 37. Nc2 {[%emt 0:00:09]} Rd8 {[%emt 0:00:01]} 38. Ke2 {[%emt 0:00:02]} b5 {[%emt 0:00:04]} 39. axb5 {[%emt 0:00:03]} axb5 {[%emt 0:00:00]} 40. Na3 b4 41. cxb4 {[%emt 0:00:12]} cxb4 {[%emt 0:00:01]} 42. Nc2 {[%emt 0:00:00]} b3 {[%emt 0:00:01]} 43. Nd4 {[%emt 0:00:02]} Bxd4 {[%emt 0:00:01]} 44. exd4 Rc8 45. Rxh6 Rc2+ 46. Ke3 {[%emt 0:00:06]} Kf7 {[%emt 0:00:02]} 47. Rh7+ Kf6 48. Rb7 {[%emt 0:00:05]} Rxb2 {[%emt 0:00:01]} 49. g4 {[%emt 0:00:01]} Rxg2 {[%emt 0:00:00]} 50. g5+ {[%emt 0:00:05]} Rxg5 {[%emt 0:00:03]} 51. Kf4 {[%emt 0:00:06]} Rf5+ {[%emt 0:00:01]} 52. Kg4 {[%emt 0:00:00]} Rf3 {[%emt 0:00:02]} 53. Rb8 {[%emt 0:00:01]} Ke7 {[%emt 0:00:04]} 54. Rb6 {[%emt 0:00:02]} Kd7 {[%emt 0:00:01]} 55. Rb8 {[%emt 0:00:03]} Kc6 {[%emt 0:00:03]} 56. Rb4 {[%emt 0:00:02]} Kd7 {[%emt 0:00:04]} 57. Rb7+ Kd6 58. Rb6+ Ke7 59. Rb8 {[%emt 0:00:05]} Kf6 {[%emt 0:00:05]} 60. Rf8+ {[%emt 0:00:03]} Kg6 {[%emt 0:00:03]} 61. Re8 {[%emt 0:00:04]} Kf7 {[%emt 0:00:01]} 62. Rb8 {[%emt 0:00:01]} Rd3 {[%emt 0:00:00]} 63. Kf4 {[%emt 0:00:02]} Rxd4 {[%emt 0:00:04]} 64. Rxb3 {[%emt 0:00:02]} Kf6 {[%emt 0:00:00]} 65. Rb6 {[%emt 0:00:02]} Rd3 {[%emt 0:00:01]} 66. Ra6 {[%emt 0:00:02]} Rf3+ {[%emt 0:00:01]} 67. Kg4 {[%emt 0:00:01]} Ke5 {[%emt 0:00:00]} 68. Rb6 {[%emt 0:00:01]} Rf1 {[%emt 0:00:01]} 69. Rb5 {[%emt 0:00:02]} e3 {[%emt 0:00:01]} 70. Rb2 {[%emt 0:00:02]} Ke4 {[%emt 0:00:00]} 0-1

[Event "GER-ch Blitz Women 2020"]
[Site "Magdeburg"]
[Date "2020.08.15"]
[Round "16.2"]
[White "Osmanodja, Filiz"]
[Black "Scognamiglio, Stefanie"]
[Result "1-0"]
[ECO "B34"]
[WhiteElo "2293"]
[BlackElo "2097"]
[Annotator "ChessBase"]
[PlyCount "53"]
[EventDate "2020.07.28"]
[EventType "tourn"]
[EventCountry "GER"]
[SourceTitle "playchess.com"]
[Source "ChessBase"]
[SourceQuality "1"]
[TimeControl "180+2"]

1. e4 {[%emt 0:00:00]} c5 {[%emt 0:00:00]} 2. Nc3 {[%emt 0:00:00]} Nc6 {[%emt 0:00:00]} 3. Nf3 {[%emt 0:00:01]} g6 {[%emt 0:00:00]} 4. d4 {[%emt 0:00:01]} cxd4 {[%emt 0:00:01]} 5. Nxd4 Bg7 6. Bc4 {[%emt 0:00:06]} Nxd4 {[%emt 0:00:02]} 7. Be3 {[%emt 0:00:09]} Nc6 {[%emt 0:00:02]} 8. Qd5 {[%emt 0:00:07]} e6 {[%emt 0:00:03]} 9. Qd6 {[%emt 0:00:08]} a6 {[%emt 0:00:09]} 10. O-O-O {[%emt 0:00:11]} Nge7 {[%emt 0:00:03]} 11. Bg5 {[%emt 0:00:08]} h6 {[%emt 0:00:14]} 12. Bh4 {[%emt 0:00:06]} O-O {[%emt 0:00:18]} 13. f4 {[%emt 0:00:06]} b5 {[%emt 0:00:10]} 14. Bb3 {[%emt 0:00:09]} Re8 {[%emt 0:00:14]} 15. e5 {[%emt 0:00:24]} Qb6 {[%emt 0:00:26]} 16. g4 {[%emt 0:00:20]} Qe3+ {[%emt 0:00:13]} 17. Kb1 {[%emt 0:00:13]} Qxf4 {[%emt 0:00:03]} 18. Rhf1 {[%emt 0:00:30]} Qxe5 {[%emt 0:00:03]} 19. Qd2 {[%emt 0:00:04]} b4 {[%emt 0:00:06]} 20. Na4 {[%emt 0:00:05]} d5 {[%emt 0:00:11]} 21. Bg3 {[%emt 0:00:13]} Qd4 {[%emt 0:00:22]} 22. Qe2 {[%emt 0:00:01]} Qa7 {[%emt 0:00:11]} 23. Qf3 {[%emt 0:00:07]} f5 {[%emt 0:00:10]} 24. gxf5 {[%emt 0:00:03]} Nxf5 {[%emt 0:00:11]} 25. Bf2 {[%emt 0:00:08]} Ncd4 {[%emt 0:00:19]} 26. Qd3 {[%emt 0:00:09]} Qc7 {[%emt 0:00:05]} 27. Bxd4 {[%emt 0:00:13]} 1-0

[Event "GER-ch Blitz Women 2020"]
[Site "Magdeburg"]
[Date "2020.08.15"]
[Round "16.5"]
[White "Voicu-Jagodzinsky, Carmen"]
[Black "Zeller, Elisa"]
[Result "1-0"]
[ECO "A05"]
[WhiteElo "2244"]
[BlackElo "1969"]
[Annotator "ChessBase"]
[PlyCount "77"]
[EventDate "2020.07.28"]
[EventType "tourn"]
[EventCountry "GER"]
[SourceTitle "playchess.com"]
[Source "ChessBase"]
[SourceQuality "1"]
[TimeControl "180+2"]

1. Nf3 {[%emt 0:00:00]} Nf6 {[%emt 0:00:00]} 2. g3 {[%emt 0:00:00]} d5 {[%emt 0:00:01]} 3. b3 {[%emt 0:00:01]} g6 {[%emt 0:00:02]} 4. Bb2 {[%emt 0:00:00]} Bg7 {[%emt 0:00:01]} 5. Bg2 {[%emt 0:00:01]} O-O 6. c4 dxc4 {[%emt 0:00:05]} 7. bxc4 {[%emt 0:00:01]} c6 {[%emt 0:00:01]} 8. O-O {[%emt 0:00:03]} Nbd7 {[%emt 0:00:09]} 9. d3 {[%emt 0:00:19]} Nc5 {[%emt 0:00:06]} 10. Qc2 {[%emt 0:00:06]} Ne6 {[%emt 0:00:16]} 11. Nbd2 {[%emt 0:00:05]} Nd7 {[%emt 0:00:12]} 12. Bxg7 {[%emt 0:00:03]} Kxg7 {[%emt 0:00:02]} 13. Rab1 {[%emt 0:00:00]} Qc7 {[%emt 0:00:13]} 14. Qc3+ {[%emt 0:00:10]} Kg8 {[%emt 0:00:02]} 15. d4 {[%emt 0:00:01]} Ng7 {[%emt 0:00:04]} 16. e4 {[%emt 0:00:01]} e5 {[%emt 0:00:05]} 17. Nxe5 {[%emt 0:00:16]} Nxe5 18. dxe5 Re8 {[%emt 0:00:11]} 19. f4 {[%emt 0:00:01]} Ne6 {[%emt 0:00:06]} 20. c5 {[%emt 0:00:08]} Bd7 {[%emt 0:00:11]} 21. Nf3 {[%emt 0:00:12]} Rad8 {[%emt 0:00:07]} 22. Kh1 {[%emt 0:00:38]} Bc8 {[%emt 0:00:02]} 23. Rbd1 {[%emt 0:00:04]} Qe7 {[%emt 0:00:08]} 24. Rd6 {[%emt 0:00:01]} Nc7 {[%emt 0:00:08]} 25. a4 {[%emt 0:00:02]} Be6 {[%emt 0:00:12]} 26. Rfd1 {[%emt 0:00:12]} Na6 {[%emt 0:00:10]} 27. Qd4 {[%emt 0:00:04]} Rxd6 {[%emt 0:00:06]} 28. exd6 {[%emt 0:00:09]} Qd7 {[%emt 0:00:08]} 29. Ne5 {[%emt 0:00:01]} Qd8 {[%emt 0:00:05]} 30. Rf1 {[%emt 0:00:15]} Bd7 {[%emt 0:00:11]} 31. h4 {[%emt 0:00:09]} Nb8 {[%emt 0:00:01]} 32. h5 {[%emt 0:00:17]} Qf6 {[%emt 0:00:23]} 33. h6 {[%emt 0:00:15]} Rd8 {[%emt 0:00:20]} 34. Rb1 {[%emt 0:00:03]} Bc8 {[%emt 0:00:11]} 35. Nf3 {[%emt 0:00:05]} Qxd4 36. Nxd4 {[%emt 0:00:01]} Nd7 {[%emt 0:00:06]} 37. Nb3 {[%emt 0:00:03]} Nf6 {[%emt 0:00:04]} 38. Bf3 {[%emt 0:00:02]} Re8 39. e5 1-0

[Event "GER-ch Blitz Women 2020"]
[Site "Magdeburg"]
[Date "2020.08.15"]
[Round "16.6"]
[White "Leib, Britta"]
[Black "Kosovska, Olena"]
[Result "0-1"]
[ECO "C55"]
[WhiteElo "1903"]
[BlackElo "1881"]
[Annotator "NA"]
[PlyCount "112"]
[EventDate "2020.07.28"]
[EventType "tourn"]
[EventCountry "GER"]
[SourceTitle "playchess.com"]
[Source "ChessBase"]
[SourceQuality "1"]
[TimeControl "180+2"]

1. e4 {[%emt 0:00:00]} e5 {[%emt 0:00:00]} 2. Nf3 {[%emt 0:00:00]} Nc6 {[%emt 0:00:00]} 3. Bc4 {[%emt 0:00:00]} Nf6 4. d3 Be7 {[%emt 0:00:03]} 5. h3 {[%emt 0:00:03]} O-O {[%emt 0:00:01]} 6. a3 {[%emt 0:00:07]} d5 {[%emt 0:00:07]} 7. exd5 {[%emt 0:00:01]} Nxd5 {[%emt 0:00:01]} 8. O-O {[%emt 0:00:03]} Be6 {[%emt 0:00:21]} 9. Re1 {[%emt 0:00:22]} Bf6 {[%emt 0:00:01]} 10. Nbd2 {[%emt 0:00:10]} Qd7 {[%emt 0:00:16]} 11. Ne4 {[%emt 0:00:19]} Be7 {[%emt 0:00:01]} 12. Bb3 {[%emt 0:00:23]} Nf4 {[%emt 0:00:08]} 13. Bxf4 {[%emt 0:00:14]} exf4 {[%emt 0:00:04]} 14. Ba4 {[%emt 0:00:10]} h6 {[%emt 0:00:20]} 15. Ne5 {[%emt 0:00:07]} Qd5 {[%emt 0:00:21]} 16. Nc3 {[%emt 0:00:15]} Qc5 {[%emt 0:00:42]} 17. Bxc6 {[%emt 0:00:04]} bxc6 {[%emt 0:00:02]} 18. Qf3 {[%emt 0:00:02]} Bg5 {[%emt 0:00:23]} 19. Qxc6 {[%emt 0:00:11]} Qa5 {[%emt 0:00:14]} 20. b4 {[%emt 0:00:18]} Qb6 {[%emt 0:00:03]} 21. Ne4 {[%emt 0:00:09]} Qd4 {[%emt 0:00:14]} 22. Nxg5 {[%emt 0:00:06]} hxg5 {[%emt 0:00:01]} 23. Qe4 {[%emt 0:00:02]} Qc3 {[%emt 0:00:04]} 24. Nc6 {[%emt 0:00:07]} Rfe8 {[%emt 0:00:06]} 25. Ne5 {[%emt 0:00:10]} c5 {[%emt 0:00:02]} 26. bxc5 Qxc5 {[%emt 0:00:01]} 27. Qb4 {[%emt 0:00:05]} Qc7 {[%emt 0:00:03]} 28. Rab1 {[%emt 0:00:03]} Rab8 {[%emt 0:00:03]} 29. Qd2 {[%emt 0:00:01]} Rbc8 {[%emt 0:00:01]} 30. c4 {[%emt 0:00:03]} Qc5 {[%emt 0:00:02]} 31. Qb4 {[%emt 0:00:02]} Qd4 {[%emt 0:00:01]} 32. Re4 {[%emt 0:00:02]} Qd8 {[%emt 0:00:02]} 33. Nf3 {[%emt 0:00:08]} Bf5 {[%emt 0:00:02]} 34. Rxe8+ {[%emt 0:00:02]} Qxe8 {[%emt 0:00:01]} 35. Nxg5 {[%emt 0:00:01]} Bxd3 {[%emt 0:00:02]} 36. Re1 {[%emt 0:00:02]} Qd7 {[%emt 0:00:03]} 37. c5 {[%emt 0:00:03]} Bg6 {[%emt 0:00:02]} 38. Qc3 {[%emt 0:00:03]} Qc6 {[%emt 0:00:01]} 39. Rc1 {[%emt 0:00:01]} f6 {[%emt 0:00:01]} 40. Nf3 {[%emt 0:00:02]} Kh7 {[%emt 0:00:02]} 41. Nd4 {[%emt 0:00:00]} Qd5 {[%emt 0:00:00]} 42. Nb5 {[%emt 0:00:02]} a6 {[%emt 0:00:02]} 43. Nd6 {[%emt 0:00:03]} Rc6 {[%emt 0:00:01]} 44. Qc4 {[%emt 0:00:05]} Qe5 {[%emt 0:00:03]} 45. Nb7 {[%emt 0:00:05]} Be4 {[%emt 0:00:06]} 46. Na5 {[%emt 0:00:01]} Rc8 {[%emt 0:00:01]} 47. Qxa6 {[%emt 0:00:02]} f3 48. g3 {[%emt 0:00:03]} Rd8 {[%emt 0:00:03]} 49. Qc4 {[%emt 0:00:04]} Qb2 {[%emt 0:00:01]} 50. Re1 {[%emt 0:00:03]} Bd3 {[%emt 0:00:01]} 51. Qh4+ {[%emt 0:00:02]} Kg8 {[%emt 0:00:01]} 52. Qh5 {[%emt 0:00:02]} Qc3 {[%emt 0:00:04]} 53. Re8+ {[%emt 0:00:02]} Rxe8 54. Qxe8+ {[%emt 0:00:01]} Kh7 {[%emt 0:00:01]} 55. Qh5+ {[%emt 0:00:04]} Kg8 {[%emt 0:00:00]} 56. c6 {[%emt 0:00:03]} Qe1+ {[%emt 0:00:01]} 0-1

[Event "GER-ch Blitz Women 2020"]
[Site "Magdeburg"]
[Date "2020.08.15"]
[Round "16.7"]
[White "Heinemann, Josefine"]
[Black "Muetsch, Annmarie"]
[Result "1/2-1/2"]
[ECO "C41"]
[WhiteElo "2281"]
[BlackElo "2219"]
[Annotator "ChessBase"]
[PlyCount "80"]
[EventDate "2020.07.28"]
[EventType "tourn"]
[EventCountry "GER"]
[SourceTitle "playchess.com"]
[Source "ChessBase"]
[SourceQuality "1"]
[TimeControl "180+2"]

1. e4 {[%emt 0:00:00]} e5 {[%emt 0:00:00]} 2. Nf3 {[%emt 0:00:00]} d6 {[%emt 0:00:02]} 3. d4 {[%emt 0:00:01]} Nd7 {[%emt 0:00:01]} 4. Nc3 {[%emt 0:00:04]} Ngf6 {[%emt 0:00:01]} 5. a4 {[%emt 0:00:03]} Be7 {[%emt 0:00:04]} 6. Bc4 {[%emt 0:00:01]} O-O {[%emt 0:00:04]} 7. O-O {[%emt 0:00:02]} a6 {[%emt 0:00:01]} 8. Re1 {[%emt 0:00:03]} c6 {[%emt 0:00:08]} 9. a5 {[%emt 0:00:12]} Qc7 {[%emt 0:00:12]} 10. h3 {[%emt 0:00:05]} h6 {[%emt 0:00:03]} 11. Bb3 {[%emt 0:00:02]} Re8 {[%emt 0:00:07]} 12. Be3 {[%emt 0:00:06]} Bf8 {[%emt 0:00:16]} 13. Nh4 {[%emt 0:00:27]} exd4 {[%emt 0:00:20]} 14. Bxd4 {[%emt 0:00:02]} c5 {[%emt 0:00:05]} 15. Bxf6 {[%emt 0:00:07]} Nxf6 {[%emt 0:00:05]} 16. Nd5 {[%emt 0:00:02]} Nxd5 {[%emt 0:00:10]} 17. Bxd5 {[%emt 0:00:02]} Be6 {[%emt 0:00:05]} 18. Bxe6 {[%emt 0:00:35]} Rxe6 {[%emt 0:00:04]} 19. Qd2 {[%emt 0:00:25]} Rae8 {[%emt 0:00:10]} 20. f3 {[%emt 0:00:30]} g6 {[%emt 0:00:05]} 21. g4 {[%emt 0:00:06]} Bg7 {[%emt 0:00:18]} 22. c3 {[%emt 0:00:01]} d5 {[%emt 0:00:19]} 23. exd5 {[%emt 0:00:16]} Qg3+ {[%emt 0:00:17]} 24. Ng2 {[%emt 0:00:02]} Rxe1+ {[%emt 0:00:08]} 25. Rxe1 {[%emt 0:00:00]} Rxe1+ 26. Qxe1 {[%emt 0:00:01]} Qxg4 {[%emt 0:00:20]} 27. fxg4 {[%emt 0:00:05]} Bf6 {[%emt 0:00:18]} 28. Kf1 {[%emt 0:00:23]} Kf8 {[%emt 0:00:06]} 29. Ne3 {[%emt 0:00:03]} Bd8 {[%emt 0:00:04]} 30. Nc4 {[%emt 0:00:06]} f6 {[%emt 0:00:03]} 31. Ke2 Ke8 32. Ke3 {[%emt 0:00:04]} Kd7 {[%emt 0:00:01]} 33. Ke4 {[%emt 0:00:00]} f5+ {[%emt 0:00:02]} 34. gxf5 {[%emt 0:00:00]} gxf5+ {[%emt 0:00:01]} 35. Kf4 {[%emt 0:00:01]} Bg5+ {[%emt 0:00:01]} 36. Kf3 {[%emt 0:00:00]} h5 {[%emt 0:00:05]} 37. Kg3 {[%emt 0:00:07]} h4+ {[%emt 0:00:02]} 38. Kf3 {[%emt 0:00:00]} Bd8 {[%emt 0:00:02]} 39. Kf4 {[%emt 0:00:02]} Bf6 {[%emt 0:00:01]} 40. Kf3 {[%emt 0:00:05]} Bd8 {[%emt 0:00:01]} 1/2-1/2